fUSD/lending_fUSD_20250708
["ID","MTS","AMOUNT","RATE_DAILY","PERIOD"]
[370292659,1751939433085,-246.60331869,0.00030136,7]
[370292661,1751939433096,-269.652,0.00030136,7]
[370292663,1751939433108,-16.90945543,0.00030136,7]
[370292665,1751939433118,-627.1,0.00030136,7]
[370292667,1751939433128,-74.29280743,0.00030136,7]
[370292670,1751939433141,-385.70719257,0.00030136,7]
[370292672,1751939433150,-480.99374567,0.00030136,7]
[370292674,1751939433160,-460.0,0.00030136,7]
[370292676,1751939433170,-520.9498676,0.00030136,7]
[370292678,1751939433179,-475.6238934,0.00030136,7]
[370292680,1751939433189,-522.60198095,0.00030136,7]
[370292682,1751939433198,-460.0,0.00030136,7]
[370292684,1751939433208,-525.79298786,0.00030136,7]
[370292685,1751939433218,-500.0,0.00030136,7]
[370292687,1751939433227,-299.10286771,0.00030136,7]
[370292690,1751939433239,-200.89713229,0.00030136,7]
[370292691,1751939433248,-522.70117423,0.00030136,7]
[370292693,1751939433258,-460.0,0.00030136,7]
[370292695,1751939433272,-521.45960111,0.00030136,7]
[370292697,1751939433281,-481.42105057,0.00030136,7]
[370292699,1751939433291,-460.0,0.00030136,7]
[370292701,1751939433302,-481.02606721,0.00030136,7]
[370292703,1751939433313,-460.0,0.00030136,7]
[370292705,1751939433324,-525.79948101,0.00030136,7]
[370292707,1751939433334,-471.94789512,0.00030136,7]
[370292709,1751939433345,-490.5666259,0.00030136,7]
[370292711,1751939433355,-460.0,0.00030136,7]
[370292713,1751939433364,-469.33106535,0.00030136,7]
[370292720,1751939433424,-460.0,0.00030136,7]
[370292722,1751939433434,-525.65239503,0.00030136,7]
[370292724,1751939433444,-460.0,0.00030136,7]
[370292726,1751939433454,-460.0,0.00030136,7]
[370292728,1751939433463,-465.77942578,0.00030136,7]
[370292730,1751939433473,-529.439918,0.00030136,7]
[370292732,1751939433482,-460.0,0.00030136,7]
[370292734,1751939433491,-106.63715924,0.00030136,7]
[370292736,1751939433508,-393.45277369,0.00030136,7]
[370292738,1751939433517,-211.69364036,0.00030136,7]
[370292741,1751939433528,-248.30635964,0.00030136,7]
[370292742,1751939433538,-144.28699226,0.00030136,7]
[370292745,1751939433549,-268.61,0.00030136,7]
[370292747,1751939433561,-47.10300774,0.00030136,7]
[370292749,1751939433570,-503.84301021,0.00030136,7]
[370292751,1751939433579,-495.52,0.00030136,7]
[370292753,1751939433589,-157.70375552,0.00030136,7]
[370292992,1751939437490,-320.55420848,0.00030136,7]
[370292993,1751939437500,-555.64,0.00030136,7]
[370292994,1751939437510,-471.31368123,0.00030136,7]
[370292995,1751939437520,-460.0,0.00030136,7]
[370292996,1751939437529,-460.0,0.00030136,7]
[370292997,1751939437540,-460.0,0.00030136,7]
[370292998,1751939437549,-460.0,0.00030136,7]
[370292999,1751939437558,-460.0,0.00030136,7]
[370293000,1751939437568,-495.33848078,0.00030136,7]
[370293001,1751939437579,-466.33203477,0.00030136,7]
[370293002,1751939437589,-460.0,0.00030136,7]
[370293003,1751939437598,-362.12744671,0.00030136,7]
[370293004,1751939437607,-460.0,0.00030136,7]
[370293005,1751939437618,-460.0,0.00030136,7]
[370293006,1751939437629,-460.0,0.00030136,7]
[370293007,1751939437638,-460.0,0.00030136,7]
[370293008,1751939437647,-460.0,0.00030136,7]
[370293009,1751939437657,-174.71180304,0.00030136,7]
[370293010,1751939437669,-386.41879733,0.00030136,7]
[370293011,1751939437678,-606.97853044,0.00030136,7]
[370293012,1751939437688,-500.0,0.00030136,7]
[370293013,1751939437697,-417.60190581,0.00030136,7]
[370293014,1751939437712,-23.81361941,0.00030136,7]
[370293015,1751939437722,-460.0,0.00030136,7]
[370293016,1751939437731,-87.60850182,0.00030136,7]
[370293017,1751939437746,-394.69919473,0.00030136,7]
[370293018,1751939437755,-395.41280519,0.00030136,7]
[370293019,1751939437775,-64.58719481,0.00030136,7]
[370293020,1751939437785,-384.36049869,0.00030136,7]
[370293021,1751939437797,-138.57583442,0.00030136,7]
[370293022,1751939437807,-460.0,0.00030136,7]
[370293023,1751939437816,-524.0733565,0.00030136,7]
[370293024,1751939437825,-460.0,0.00030136,7]
[370293025,1751939437835,-467.17782679,0.00030136,7]
[370293026,1751939437845,-467.97298229,0.00030136,7]
[370293027,1751939437856,-110.92701771,0.00030136,7]
[370293028,1751939437866,-528.60274477,0.00030136,7]
[370293029,1751939437875,-480.78336792,0.00030136,7]
[370293030,1751939437884,-471.94770927,0.00030136,7]
[370293031,1751939437894,-523.03502824,0.00030136,7]
[370293032,1751939437903,-529.17992153,0.00030136,7]
[370293033,1751939437913,-460.0,0.00030136,7]
[370293035,1751939437921,-477.74417022,0.00030136,7]
[370293037,1751939437930,-561.6189397,0.00030136,7]
[370293039,1751939437940,-563.05,0.00030136,7]
[370293041,1751939437948,-522.35661945,0.00030136,7]
[370293043,1751939437957,-585.32,0.00030136,7]
[370293045,1751939437967,-523.93598422,0.00030136,7]
[370293047,1751939437976,-494.76376796,0.00030136,7]
[370293049,1751939437985,-525.21876861,0.00030136,7]
[370293051,1751939437994,-760.67908639,0.00030136,7]
[370293216,1751939439649,-76.24679192,0.00030136,7]
[370293218,1751939439659,-383.75320808,0.00030136,7]
[370293229,1751939439756,-138.75999885,0.00030136,7]
[370293231,1751939439765,-527.57206835,0.00030136,7]
[370293233,1751939439775,-460.0,0.00030136,7]
[370293235,1751939439784,-460.0,0.00030136,7]
[370293237,1751939439793,-474.54314885,0.00030136,7]
[370293239,1751939439803,-460.0,0.00030136,7]
[370293241,1751939439812,-472.19378128,0.00030136,7]
[370293243,1751939439821,-474.61888831,0.00030136,7]
[370293245,1751939439830,-496.0,0.00030136,7]
[370293247,1751939439839,-475.18488546,0.00030136,7]
[370293249,1751939439848,-527.41137974,0.00030136,7]
[370293251,1751939439858,-524.86189613,0.00030136,7]
[370293253,1751939439868,-460.0,0.00030136,7]
[370293255,1751939439877,-485.81076178,0.00030136,7]
[370293257,1751939439887,-474.18157876,0.00030136,7]
[370293259,1751939439896,-473.59171118,0.00030136,7]
[370293261,1751939439906,-712.73,0.00030136,7]
[370293263,1751939439915,-602.71896352,0.00030136,7]
[370293265,1751939439925,-523.00209788,0.00030136,7]
[370293267,1751939439935,-468.12811821,0.00030136,7]
[370293269,1751939439944,-468.1757931,0.00030136,7]
[370293271,1751939439953,-485.05809083,0.00030136,7]
[370293273,1751939439963,-460.0,0.00030136,7]
[370293276,1751939439973,-586.33892425,0.00030136,7]
[370293278,1751939439983,-526.33790647,0.00030136,7]
[370293280,1751939439993,-460.0,0.00030136,7]
[370293281,1751939440003,-460.0,0.00030136,7]
[370293283,1751939440012,-169.67202807,0.00030136,7]
[370293286,1751939440022,-525.18821458,0.00030136,7]
[370293288,1751939440032,-468.22688563,0.00030136,7]
[370293290,1751939440042,-460.0,0.00030136,7]
[370293292,1751939440051,-460.0,0.00030136,7]
[370293294,1751939440061,-1000.0,0.00030136,7]
[370293296,1751939440070,-312.14418342,0.00030136,7]
[370293298,1751939440080,-265.54203112,0.00030136,7]
[370293300,1751939440090,-468.05525479,0.00030136,7]
[370293302,1751939440100,-460.0,0.00030136,7]
[370293304,1751939440110,-443.33526668,0.00030136,7]
[370293306,1751939440119,-460.0,0.00030136,7]
[370293308,1751939440128,-474.97402769,0.00030136,7]
[370293310,1751939440138,-460.0,0.00030136,7]
[370293312,1751939440148,-534.64,0.00030136,7]
[370293314,1751939440158,-460.0,0.00030136,7]
[370293316,1751939440168,-158.55861996,0.00030136,7]
[370293318,1751939440178,-460.0,0.00030136,7]
[370293320,1751939440187,-9927.08,0.00030136,7]
[370293322,1751939440198,-468.12178355,0.00030136,7]
[370293324,1751939440208,-460.0,0.00030136,7]
[370293326,1751939440218,-471.05965424,0.00030136,7]
[370293328,1751939440227,-460.0,0.00030136,7]
[370293330,1751939440237,-469.13411634,0.00030136,7]
[370293332,1751939440247,-460.0,0.00030136,7]
[370293334,1751939440256,-460.0,0.00030136,7]
[370293336,1751939440267,-578.83335304,0.00030136,7]
[370293338,1751939440276,-1060.35,0.00030136,7]
[370293340,1751939440286,-473.29039504,0.00030136,7]
[370293342,1751939440298,-460.0,0.00030136,7]
[370293344,1751939440309,-460.0,0.00030136,7]
[370293346,1751939440319,-467.26709309,0.00030136,7]
[370293349,1751939440329,-460.0,0.00030136,7]
[370293351,1751939440338,-460.0,0.00030136,7]
[370293353,1751939440353,-473.28477985,0.00030136,7]
[370293355,1751939440364,-400.01656943,0.00030136,7]
[370293357,1751939440374,-460.0,0.00030136,7]
[370293359,1751939440383,-466.59155969,0.00030136,7]
[370293361,1751939440392,-470.13330808,0.00030136,7]
[370293363,1751939440402,-468.15812082,0.00030136,7]
[370293365,1751939440412,-511.03714241,0.00030136,7]
[370293367,1751939440421,-475.41235066,0.00030136,7]
[370293369,1751939440431,-474.41662412,0.00030136,7]
[370293371,1751939440441,-460.0,0.00030136,7]
[370293373,1751939440450,-460.0,0.00030136,7]
[370293375,1751939440460,-460.0,0.00030136,7]
[370293378,1751939440470,-469.99822163,0.00030136,7]
[370293380,1751939440480,-460.0,0.00030136,7]
[370293382,1751939440489,-460.0,0.00030136,7]
[370293384,1751939440499,-460.0,0.00030136,7]
[370293386,1751939440509,-474.68858855,0.00030136,7]
[370293388,1751939440519,-460.0,0.00030136,7]
[370293390,1751939440529,-500.0,0.00030136,7]
[370293392,1751939440538,-500.0,0.00030136,7]
[370293394,1751939440547,-460.0,0.00030136,7]
[370293396,1751939440557,-469.20622699,0.00030136,7]
[370293398,1751939440567,-460.0,0.00030136,7]
[370293400,1751939440576,-476.51471499,0.00030136,7]
[370293402,1751939440586,-460.0,0.00030136,7]
[370293404,1751939440596,-226.2442428,0.00030136,7]
[370293405,1751939440606,-465.35344138,0.00030136,7]
[370293406,1751939440615,-472.74376503,0.00030136,7]
[370293407,1751939440625,-187.96,0.00030136,7]
[370293408,1751939440634,-267.02715556,0.00030136,7]
[370293409,1751939440643,-240.4,0.00030164,30]
[370293410,1751939440653,-500.0,0.00030173,5]
[370293411,1751939440663,-460.0,0.00030309,7]
[370293412,1751939440673,-567.97314268,0.00030309,7]
[370293413,1751939440683,-460.0,0.00030309,7]
[370293414,1751939440692,-460.0,0.00030309,7]
[370293415,1751939440702,-460.0,0.00030309,7]
[370293416,1751939440715,-460.0,0.00030309,7]
[370293418,1751939440725,-460.0,0.00030309,7]
[370293420,1751939440735,-460.0,0.00030309,7]
[370293422,1751939440744,-460.0,0.00030309,7]
[370293424,1751939440753,-460.0,0.00030309,7]
[370293426,1751939440763,-460.0,0.00030309,7]
[370293428,1751939440772,-460.0,0.00030309,7]
[370293430,1751939440782,-460.0,0.00030309,7]
[370293433,1751939440791,-460.0,0.00030309,7]
[370293435,1751939440801,-460.0,0.00030309,7]
[370293436,1751939440811,-1164.99,0.00030309,7]
[370293439,1751939440821,-460.0,0.00030309,7]
[370293440,1751939440831,-473.95636211,0.00030309,7]
[370293443,1751939440842,-460.0,0.00030309,7]
[370293445,1751939440852,-2144.2,0.00030309,7]
[370293447,1751939440861,-460.0,0.00030309,7]
[370293449,1751939440871,-475.22514071,0.00030309,7]
[370293451,1751939440880,-684.6,0.00030309,7]
[370293453,1751939440889,-468.73993621,0.00030309,7]
[370293455,1751939440899,-3062.80969821,0.00030309,2]
[370293457,1751939440908,-207.560957,0.00030309,7]
[370293459,1751939440918,-460.0,0.00030309,7]
[370293461,1751939440927,-460.0,0.00030309,7]
[370293463,1751939440936,-187.06382596,0.00030309,7]
[370293465,1751939440946,-199.32372,0.00030309,7]
[370293467,1751939440955,-460.0,0.00030309,7]
[370293469,1751939440965,-158.029362,0.00030309,7]
[370293471,1751939440975,-773.89,0.00030309,7]
[370293473,1751939440984,-5000.0,0.00030309,2]
[370293475,1751939440994,-465.3566,0.00030309,3]
[370293477,1751939441004,-169.48154026,0.0003031,15]
[370293479,1751939441013,-239.24,0.00030389,2]
[370293481,1751939441023,-27998.8281791,0.00030399,3]
[370293483,1751939441032,-165.34186504,0.00030399,2]
[370293485,1751939441042,-468.94344175,0.000304,7]
[370293487,1751939441052,-469.43316267,0.000304,7]
[370293489,1751939441061,-180.36594079,0.000304,7]
[370293491,1751939441071,-460.0,0.000304,7]
[370293493,1751939441080,-460.0,0.000304,7]
[370293495,1751939441090,-460.0,0.000304,7]
[370293497,1751939441099,-460.0,0.000304,7]
[370293499,1751939441110,-460.0,0.000304,7]
[370293501,1751939441119,-460.0,0.000304,7]
[370293503,1751939441128,-460.0,0.000304,7]
[370293505,1751939441138,-460.0,0.000304,7]
[370293507,1751939441148,-164.50082468,0.000304,7]
[370293509,1751939441158,-1146.0,0.000304,7]
[370293511,1751939441167,-534.83698329,0.000304,7]
[370293513,1751939441176,-460.0,0.000304,7]
[370293515,1751939441186,-460.0,0.000304,7]
[370293517,1751939441196,-460.0,0.000304,7]
[370293519,1751939441205,-1118.6,0.000304,7]
[370293521,1751939441214,-460.0,0.000304,7]
[370293523,1751939441224,-530.81285636,0.000304,7]
[370293526,1751939441234,-460.0,0.000304,7]
[370293528,1751939441243,-500.0,0.000304,7]
[370293530,1751939441253,-584.08,0.000304,7]
[370293532,1751939441262,-510.11,0.000304,7]
[370293534,1751939441272,-460.0,0.000304,7]
[370293536,1751939441282,-591.72,0.000304,7]
[370293538,1751939441292,-1549.44,0.000304,7]
[370293540,1751939441305,-460.0,0.000304,7]
[370293542,1751939441315,-517.6,0.000304,7]
[370293544,1751939441325,-576.38,0.000304,7]
[370293546,1751939441335,-550.24,0.000304,7]
[370293548,1751939441344,-855.4,0.000304,7]
[370293550,1751939441354,-55997.6563582,0.000304,3]
[370293552,1751939441364,-477.27760063,0.00030409,7]
[370293554,1751939441374,-467.18845842,0.00030409,7]
[370293556,1751939441384,-460.0,0.00030409,7]
[370293558,1751939441394,-460.0,0.00030409,7]
[370293560,1751939441403,-460.0,0.00030409,7]
[370293562,1751939441413,-460.0,0.00030409,7]
[370293564,1751939441422,-506.72117073,0.00030409,7]
[370293566,1751939441432,-176.37763117,0.00030409,7]
[370293568,1751939441442,-460.0,0.00030409,7]
[370293570,1751939441452,-460.0,0.00030409,7]
[370293572,1751939441461,-513.67,0.00030409,7]
[370293575,1751939441472,-460.0,0.00030409,7]
[370293577,1751939441481,-460.0,0.00030409,7]
[370293579,1751939441490,-507.32,0.00030409,7]
[370293581,1751939441500,-460.0,0.00030409,7]
[370293583,1751939441509,-487.43423436,0.00030409,7]
[370293585,1751939441518,-460.0,0.00030409,7]
[370293587,1751939441528,-460.0,0.00030409,7]
[370293589,1751939441537,-460.0,0.00030409,7]
[370293591,1751939441547,-485.75392011,0.00030409,7]
[370293593,1751939441557,-460.0,0.00030409,7]
[370293595,1751939441567,-475.30874437,0.00030409,7]
[370293597,1751939441576,-460.0,0.00030409,7]
[370293599,1751939441585,-508.31,0.00030409,7]
[370293601,1751939441595,-605.81,0.00030409,7]
[370293603,1751939441604,-460.0,0.00030409,7]
[370293605,1751939441616,-460.0,0.00030409,7]
[370293607,1751939441626,-460.0,0.00030409,7]
[370293609,1751939441636,-460.0,0.00030409,7]
[370293611,1751939441647,-637.57,0.00030409,7]
[370293613,1751939441657,-460.0,0.00030409,7]
[370293615,1751939441667,-478.34,0.00030409,7]
[370293617,1751939441678,-475.55908341,0.00030409,7]
[370293619,1751939441688,-460.0,0.00030409,7]
[370293621,1751939441698,-472.28576575,0.00030409,7]
[370293623,1751939441708,-504.20652379,0.00030409,7]
[370293625,1751939441718,-460.0,0.00030409,7]
[370293627,1751939441727,-460.0,0.00030409,7]
[370293629,1751939441737,-460.0,0.00030409,7]
[370293631,1751939441747,-768.85,0.00030409,7]
[370293633,1751939441756,-460.0,0.00030409,7]
[370293635,1751939441766,-472.45727987,0.00030409,7]
[370293638,1751939441775,-600.0267515,0.00030409,7]
[370293640,1751939441785,-460.0,0.00030409,7]
[370293642,1751939441795,-479.38170201,0.00030409,7]
[370293644,1751939441804,-503.78607221,0.00030409,7]
[370293646,1751939441816,-500.0,0.00030409,7]
[370293648,1751939441825,-488.16,0.00030409,7]
[370293650,1751939441836,-488.44861309,0.00030409,7]
[370293652,1751939441846,-1242.78,0.00030409,7]
[370293654,1751939441856,-460.0,0.00030409,7]
[370293656,1751939441866,-500.0,0.00030409,7]
[370293658,1751939441875,-460.0,0.00030409,7]
[370293660,1751939441886,-460.0,0.00030409,7]
[370293662,1751939441896,-460.0,0.00030409,7]
[370293664,1751939441905,-193.94014948,0.00030409,7]
[370293666,1751939441915,-460.0,0.00030409,7]
[370293668,1751939441925,-460.0,0.00030409,7]
[370293670,1751939441935,-460.0,0.00030409,7]
[370293672,1751939441945,-460.0,0.00030409,7]
[370293674,1751939441955,-581.92,0.00030409,7]
[370293676,1751939441964,-460.0,0.00030409,7]
[370293678,1751939441974,-460.0,0.00030409,7]
[370293680,1751939441984,-460.0,0.00030409,7]
[370293682,1751939441994,-460.0,0.00030409,7]
[370293684,1751939442004,-532.3,0.00030409,7]
[370293687,1751939442014,-460.0,0.00030409,7]
[370293689,1751939442024,-460.0,0.00030409,7]
[370293691,1751939442033,-460.0,0.00030409,7]
[370293693,1751939442043,-460.0,0.00030409,7]
[370293695,1751939442053,-539.32,0.00030409,7]
[370293697,1751939442063,-460.0,0.00030409,7]
[370293699,1751939442073,-460.0,0.00030409,7]
[370293701,1751939442083,-460.0,0.00030409,7]
[370293703,1751939442093,-460.0,0.00030409,7]
[370293705,1751939442102,-479.42,0.00030409,7]
[370293707,1751939442112,-460.0,0.00030409,7]
[370293709,1751939442125,-460.0,0.00030409,7]
[370293711,1751939442135,-460.0,0.00030409,7]
[370293713,1751939442145,-521.89144637,0.00030409,7]
[370293716,1751939442155,-460.0,0.00030409,7]
[370293718,1751939442165,-498.4,0.00030409,7]
[370293720,1751939442175,-2093.32,0.00030409,7]
[370293722,1751939442185,-460.0,0.00030409,7]
[370293724,1751939442194,-460.0,0.00030409,7]
[370293726,1751939442204,-460.0,0.00030409,7]
[370293728,1751939442214,-460.0,0.00030409,7]
[370293730,1751939442224,-460.0,0.00030409,7]
[370293732,1751939442234,-460.0,0.00030409,7]
[370293734,1751939442243,-460.0,0.00030409,7]
[370293736,1751939442254,-460.0,0.00030409,7]
[370293738,1751939442264,-531.39,0.00030409,7]
[370293740,1751939442274,-514.81,0.00030409,7]
[370293742,1751939442284,-599.7,0.00030409,7]
[370293744,1751939442294,-460.0,0.00030409,7]
[370293746,1751939442308,-582.61,0.00030409,7]
[370293767,1751939442318,-460.0,0.00030409,7]
[370293770,1751939442507,-460.0,0.00030409,7]
[370293772,1751939442518,-1378.52,0.00030409,7]
[370293774,1751939442527,-485.43992727,0.00030409,7]
[370293776,1751939442536,-998.64,0.00030409,7]
[370293778,1751939442546,-1450.81,0.00030409,7]
[370293780,1751939442556,-532.23104007,0.00030409,7]
[370293782,1751939442565,-1986.99,0.00030409,7]
[370293784,1751939442575,-460.0,0.00030409,7]
[370293786,1751939442585,-300.0,0.00030409,2]
[370293788,1751939442594,-773.38,0.00030409,7]
[370293790,1751939442604,-460.0,0.00030409,7]
[370293792,1751939442613,-540.76,0.00030409,7]
[370293794,1751939442622,-460.0,0.00030409,7]
[370293796,1751939442631,-460.0,0.00030409,7]
[370293798,1751939442640,-460.0,0.00030409,7]
[370293800,1751939442650,-554.82,0.00030409,7]
[370293802,1751939442660,-1196.85,0.00030409,7]
[370293805,1751939442670,-460.0,0.00030409,7]
[370293807,1751939442680,-460.0,0.00030409,7]
[370293809,1751939442691,-460.0,0.00030409,7]
[370293811,1751939442702,-460.0,0.00030409,7]
[370293813,1751939442712,-1459.73,0.00030409,7]
[370293815,1751939442722,-460.0,0.00030409,7]
[370293817,1751939442733,-467.93,0.00030409,7]
[370293819,1751939442742,-460.0,0.00030409,7]
[370293821,1751939442752,-633.14,0.00030409,7]
[370293823,1751939442761,-525.64742551,0.00030409,7]
[370293824,1751939442773,-460.0,0.00030409,7]
[370293826,1751939442782,-460.0,0.00030409,7]
[370293827,1751939442791,-584.75871087,0.00030409,7]
[370293828,1751939442801,-460.0,0.00030409,7]
[370293829,1751939442812,-460.0,0.00030409,7]
[370293830,1751939442821,-460.0,0.00030409,7]
[370293831,1751939442831,-460.0,0.00030409,7]
[370293832,1751939442840,-460.0,0.00030409,7]
[370293833,1751939442849,-460.0,0.00030409,7]
[370293834,1751939442859,-610.8,0.00030409,7]
[370293835,1751939442869,-732.62,0.00030409,7]
[370293836,1751939442878,-481.30460387,0.00030409,7]
[370293837,1751939442887,-460.0,0.00030409,7]
[370293839,1751939442897,-511.09,0.00030409,7]
[370293841,1751939442907,-460.0,0.00030409,7]
[370293843,1751939442916,-509.55452772,0.00030409,7]
[370293845,1751939442926,-460.0,0.00030409,7]
[370293847,1751939442935,-603.28697964,0.00030409,7]
[370293849,1751939442945,-460.0,0.00030409,7]
[370293852,1751939442955,-743.6,0.00030409,7]
[370293854,1751939442964,-343.99276308,0.00030409,7]
[370293856,1751939442973,-460.0,0.00030409,7]
[370293858,1751939442983,-460.0,0.00030409,7]
[370293860,1751939442992,-5190.96,0.00030409,7]
[370293862,1751939443002,-289.34177896,0.00030409,7]
[370293864,1751939443012,-460.0,0.00030409,7]
[370293866,1751939443021,-460.0,0.00030409,7]
[370293868,1751939443032,-500.0,0.00030409,7]
[370293870,1751939443041,-544.14,0.00030409,7]
[370293872,1751939443051,-485.95,0.00030409,7]
[370293874,1751939443061,-1934.5,0.00030409,7]
[370293876,1751939443070,-460.0,0.00030409,7]
[370293878,1751939443079,-541.48707175,0.00030409,7]
[370293880,1751939443088,-460.0,0.00030409,7]
[370293882,1751939443098,-460.0,0.00030409,7]
[370293884,1751939443108,-1191.51,0.00030409,7]
[370293886,1751939443117,-1096.62,0.00030409,7]
[370293888,1751939443127,-460.0,0.00030409,7]
[370293890,1751939443137,-477.97371471,0.00030409,7]
[370293892,1751939443147,-460.0,0.00030409,7]
[370293894,1751939443156,-463.33,0.00030409,7]
[370293896,1751939443166,-460.0,0.00030409,7]
[370293898,1751939443176,-1079.34,0.00030409,7]
[370293900,1751939443185,-460.0,0.00030409,7]
[370293902,1751939443194,-460.0,0.00030409,7]
[370293904,1751939443204,-460.0,0.00030409,7]
[370293906,1751939443213,-460.0,0.00030409,7]
[370293908,1751939443223,-460.0,0.00030409,7]
[370293910,1751939443234,-460.0,0.00030409,7]
[370293912,1751939443244,-557.45,0.00030409,7]
[370293914,1751939443254,-519.23483434,0.00030409,7]
[370293942,1751939443506,-527.43516566,0.00030409,7]
[370293944,1751939443515,-460.0,0.00030409,7]
[370293946,1751939443525,-482.62780202,0.00030409,7]
[370293948,1751939443535,-460.0,0.00030409,7]
[370293950,1751939443545,-502.54,0.00030409,7]
[370293952,1751939443556,-460.0,0.00030409,7]
[370293954,1751939443564,-460.0,0.00030409,7]
[370293956,1751939443574,-592.49,0.00030409,7]
[370293958,1751939443583,-462.33326096,0.00030409,7]
[370293960,1751939443594,-542.99126147,0.00030409,7]
[370293962,1751939443603,-367.05042168,0.00030409,7]
[370293964,1751939443613,-564.88,0.00030409,7]
[370293966,1751939443622,-460.0,0.0003041,7]
[370293968,1751939443631,-555.95045443,0.0003041,7]
[370293970,1751939443640,-475.37690579,0.0003041,7]
[370293972,1751939443649,-484.02324531,0.0003041,7]
[370293974,1751939443659,-259.20500084,0.0003041,7]
[370293976,1751939443668,-498.59839399,0.0003041,7]
[370293978,1751939443677,-460.0,0.0003041,7]
[370293980,1751939443686,-492.16340584,0.0003041,7]
[370293982,1751939443695,-506.43674721,0.0003041,7]
[370293984,1751939443705,-175.57779308,0.0003041,7]
[370293986,1751939443714,-460.0,0.0003041,7]
[370293988,1751939443723,-470.23268779,0.0003041,7]
[370293990,1751939443733,-460.0,0.0003041,7]
[370293992,1751939443742,-460.0,0.0003041,7]
[370293994,1751939443752,-460.0,0.0003041,7]
[370293996,1751939443761,-460.0,0.0003041,7]
[370293998,1751939443772,-460.0,0.0003041,7]
[370294000,1751939443782,-460.0,0.0003041,7]
[370294002,1751939443792,-474.73,0.0003041,7]
[370294004,1751939443801,-460.0,0.0003041,7]
[370294006,1751939443811,-462.84,0.0003041,7]
[370294008,1751939443820,-460.0,0.0003041,7]
[370294010,1751939443829,-524.62,0.0003041,7]
[370294012,1751939443839,-575.91,0.0003041,7]
[370294014,1751939443848,-474.6163669,0.0003041,7]
[370294016,1751939443857,-476.11967813,0.0003041,7]
[370294018,1751939443866,-460.0,0.0003041,7]
[370294020,1751939443875,-478.89906003,0.0003041,7]
[370294022,1751939443884,-217.35460604,0.0003041,7]
[370294025,1751939443900,-256.52129472,0.00030409,7]
[370294202,1751939445679,-3505.21097759,0.00023941,2]
[370294607,1751939564813,400.0,0.0003,120]
[370294608,1751939586877,827.0,0.0003,120]
[370294631,1751940381847,159.74,0.00013699,2]
[370294635,1751940457155,184.45,0.00025811,120]
[370294636,1751940457506,184.45,0.00030113,120]
[370294638,1751940623826,503.16,0.0003011,120]
[370294639,1751940631802,-250.0,0.00015,2]
[370294640,1751940631812,-871.7424111,0.00018878,2]
[370294641,1751940631824,-407.18055783,0.00018878,2]
[370294642,1751940631835,-135.92506262,0.00018878,2]
[370294643,1751940631845,-359.37825163,0.00019078,2]
[370294644,1751940631856,-152.67052463,0.00019178,2]
[370294645,1751940631865,-152.4249699,0.00023927,2]
[370294646,1751940631875,-1200.0,0.00023939,2]
[370294647,1751940631884,-553.0,0.0002394,2]
[370294648,1751940631893,-300.0,0.0002394,2]
[370294649,1751940631902,-198.29173089,0.00023941,2]
[370294650,1751940631911,-151.75753506,0.00023941,2]
[370294651,1751940631920,-76681.8372805,0.00023941,2]